Cogmind - Beta 15 @@@ ROGUE MODE // 2025.07.08 @ 11:52:14 Player: Thqwib-Linux Result: Destroyed by G-67 Veteran with Field Laser Performance ------------- Evolutions (5) 2500 Regions Visited (16) 3200 Robots Destroyed (40) 200 Value Destroyed (1271) 1271 Prototype IDs (26) 520 Alien Tech Used (2) 400 Bonus (2016) 2016 TOTAL SCORE: 10107 Bonus ------- High Alert Combat Kills 41 Follower Combat Kills 1266 Met Data Miner 300 Met Imprinter 300 Was Imprinted 300 Friendly Fire -191 Cogmind --------- Core Integrity 0/1000 Matter 290/300 Energy 75/100 System Corruption 25% Temperature Cool (21) Movement Core (50) Location -4/Proximity Caves Parts ------- > --- POWER (2) -------- (None) > --- PROPULSION (5) --- (None) > --- UTILITY (7) ------ (None) > --- WEAPON (3) ------- (None) > --- INVENTORY (5) ---- Advanced Heat Sink Structural Scanner Improved Kinecellerator Phase Shifter Improved Medium Armor Plating Peak State ------------ > --- POWER ------------ Light Antimatter Reactor Zionite Light DM Reactor > --- PROPULSION ------- Wheel Wheel Armored Huge Wheel > --- UTILITY ---------- Advanced Heat Sink Experimental Heat Sink Medium Storage Unit Advanced Signal Interpreter 0b10 Decoder Chip [Scout] Phase Shifter Improved Hacking Suite > --- WEAPON ----------- Field Laser Plasma Rifle Plasma Rifle > --- INVENTORY -------- Advanced Heat Sink Advanced Heat Sink Structural Scanner Improved Medium Armor Plating Hardlight Generator [Rating: 72] Favorites ----------- Power Light Deuterium Engine Engine Light Deuterium Engine Power Core Light Nuclear Core Reactor Zionite Light DM Reactor Propulsion Improved Flight Unit Leg Aluminum Leg Wheel Wheel Flight Unit Improved Flight Unit Utility Improved Hacking Suite Device Recoil Stabilizer Storage Medium Storage Unit Processor Improved Targeting Computer Hackware Improved Hacking Suite Protection Improved Medium Armor Plating Weapon Mini Assault Cannon Energy Gun Small Laser Ballistic Gun Assault Rifle Ballistic Cannon Mini Assault Cannon Launcher Rocket Launcher Build | -11 -10 -10 -9 -9 -7 -6 -6 -6 -6 -6 -5 -5 -5 -5 -5 -4 ------- Run | Yrd Mat Min Mat Min Zio Pro Fac Low Low Dat Pro Fac Upp Upp Zhi Pro Slots Evolved 10 | . . . 2 . . . 6 . . . . 2 . . . . Power 1 | . . . . . . . 1 . . . . . . . . . Propulsion 3 | . . . . . . . 2 . . . . 1 . . . . Utility 5 | . . . 1 . . . 3 . . . . 1 . . . . Weapon 1 | . . . 1 . . . . . . . . . . . . . Parts Attached 65 | 3 2 3 19 1 . 2 12 1 . . 4 3 2 3 1 9 Power 8 | . . . 4 . . 1 . . . . 1 . . 1 . 1 Engine 5 | . . . 4 . . . . . . . 1 . . . . . Core 1 | . . . . . . 1 . . . . . . . . . . Reactor 2 | . . . . . . . . . . . . . . 1 . 1 Propulsion 14 | 2 . 2 4 . . . 2 . . . . 2 1 . . 1 Treads . | . . . . . . . . . . . . . . . . . Leg 6 | 2 . 2 2 . . . . . . . . . . . . . Wheel 3 | . . . . . . . . . . . . 2 1 . . . Hover . | . . . . . . . . . . . . . . . . . Flight 5 | . . . 2 . . . 2 . . . . . . . . 1 Utility 26 | . 1 . 5 . . . 7 1 . . 3 1 1 2 1 4 Device 15 | . . . 3 . . . 5 . . . 1 . . 2 1 3 Storage 3 | . 1 . 1 . . . . . . . . 1 . . . . Processor 5 | . . . 1 . . . 1 1 . . 2 . . . . . Hackware 2 | . . . . . . . 1 . . . . . . . . 1 Protection 1 | . . . . . . . . . . . . . 1 . . . Artifact . | . . . . . . . . . . . . . . . . . Weapon 17 | 1 1 1 6 1 . 1 3 . . . . . . . . 3 Energy Gun 8 | 1 . 1 2 . . . 1 . . . . . . . . 3 Energy Cannon . | . . . . . . . . . . . . . . . . . Ballistic Gun 7 | . 1 . 4 . . 1 1 . . . . . . . . . Ballistic Cannon 1 | . . . . . . . 1 . . . . . . . . . Launcher 1 | . . . . 1 . . . . . . . . . . . . Special Weapon . | . . . . . . . . . . . . . . . . . Impact Weapon . | . . . . . . . . . . . . . . . . . Slashing Weapon . | . . . . . . . . . . . . . . . . . Piercing Weapon . | . . . . . . . . . . . . . . . . . Special Melee Weapon . | . . . . . . . . . . . . . . . . . Unidentified Prototypes 8 | . . . 2 . . . 1 . . . . . . 2 3 . Corrupted Parts 1 | . . . . . . . . . . . . . . . . 1 System Corruption 1 | . . . . . . . . . . . . . . . . 1 Parts Lost 24 | . . . 3 . . 1 1 1 5 . 2 . . 1 . 10 Power 3 | . . . . . . . . . 1 . . . . . . 2 Propulsion 8 | . . . 2 . . . . 1 . . 2 . . . . 3 Utility 10 | . . . . . . 1 1 . 4 . . . . 1 . 3 Weapon 3 | . . . 1 . . . . . . . . . . . . 2 Highest Loss Streak 8 | . . . 3 . . 1 1 1 4 . 1 . . 1 . 8 To Critical Strikes 1 | . . . . . . . . . . . . . . . . 1 Average Backups 4 | 1 2 4 6 5 5 5 2 3 4 5 4 4 5 4 4 4 Power . | . . . . . . . . . . . . . . . . . Propulsion . | . . 1 1 2 2 2 . . . . . . 1 . . . Utility 2 | . . . . . 1 2 1 3 3 3 3 4 4 4 4 4 Weapon 1 | 1 2 2 5 2 1 1 . . 1 2 1 . . . . . Tool/Special . | . . . . . . . . . . . . . . . . . Unused Backups 6 | . . . 3 . 1 . . . . . . . . . . 2 Power . | . . . . . . . . . . . . . . . . . Propulsion 1 | . . . 1 . . . . . . . . . . . . . Utility 2 | . . . . . . . . . . . . . . . . 2 Weapon 3 | . . . 2 . 1 . . . . . . . . . . . Tool/Special . | . . . . . . . . . . . . . . . . . Average Slot Usage (%) 70 | . 56 71 70 99 100 68 78 85 65 33 38 37 46 65 66 50 Engine 3 | . . . 5 11 11 3 . . . . . . . . . . Core 1 | . . . . . . 7 6 6 4 . . . . . . . Reactor 1 | . . . . . . . . . . . . . . 4 5 5 Leg 3 | . 28 28 15 . . . . . . . . . . . . . Wheel 3 | . . . . . . . . . . . . 2 5 15 17 11 Flight 11 | . . . 5 22 22 22 25 23 20 20 13 3 . . . 1 Device 12 | . . . 11 22 22 11 19 20 14 . 4 5 5 9 11 9 Storage 2 | . 7 14 8 . . . . . . . . . 5 5 5 3 Processor 8 | . . . 1 11 11 11 5 8 11 . 6 11 11 11 11 7 Hackware 2 | . . . . . . . 4 6 6 6 6 5 5 5 5 2 Energy Gun 2 | . 14 14 8 . . . 2 6 1 . . . . . . 5 Ballistic Gun 8 | . 7 14 13 22 22 12 10 6 1 . . . . . . . Ballistic Cannon 2 | . . . . . . . 2 6 4 6 6 5 5 5 5 1 Launcher 2 | . . . . 10 11 1 . . . . . . . . . . Peak Build Rating 72 | 3 5 5 20 22 22 22 47 46 41 20 36 31 40 56 60 72 Average Rating 28 | 2 4 4 9 21 22 19 38 45 33 20 26 29 39 53 53 41 On Entrance 25 | . 3 5 5 20 22 22 19 46 44 20 20 29 30 40 56 52 Naked Turns 42 | . . . . . . . . . . . . . . . . 42 Heaviest Build 49 | 1 13 13 30 15 15 15 20 20 12 4 9 15 22 32 32 49 Greatest Support 48 | 20 20 20 20 16 16 16 20 20 15 15 15 20 48 48 48 48 Greatest Overweight (x) 3 | . . . 3 . . 1 . 1 . . . . . 1 . 1 Average Overweight (x) . | . . . . . . . . . . . . . . . . . Largest Inventory Capacity 10 | 5 10 10 10 5 5 5 5 5 5 5 5 10 10 10 10 10 Average Capacity 6 | 5 7 10 8 5 5 5 5 5 5 5 5 5 10 10 10 8 Most Carried 10 | 2 3 5 10 5 5 5 4 3 5 5 5 5 6 6 5 5 Average Carried 4 | 1 2 4 6 4 4 5 1 3 4 5 4 4 5 4 4 4 Final Capacity 10 | 5 10 10 5 5 5 5 5 5 5 5 5 10 10 10 10 5 Final Carried 6 | 2 3 4 5 5 5 5 3 3 5 5 3 4 6 4 5 5 Class Distribution -------------------- 36% | Mutant 21% | Scavenger-Mutant 19% | Gunner 9% | Scout 5% | Derelict-Mutant 4% | Sprinter Dominant Class ---------------- Mutant | -10/Materials Mutant | -10/Mines Mutant | -9/Materials Gunner | -9/Mines Gunner | -7/Zion Mutant | -6/Proximity Caves Sprinter | -6/Factory Scout | -6/Lower Caves Scout | -6/Lower Caves Mutant | -6/Data Miner Mutant | -5/Proximity Caves Mutant | -5/Factory Derelict-Mutant | -5/Upper Caves Scavenger-Mutant | -5/Upper Caves Scavenger-Mutant | -5/Zhirov Scavenger-Mutant | -4/Proximity Caves Resources | -11 -10 -10 -9 -9 -7 -6 -6 -6 -6 -6 -5 -5 -5 -5 -5 -4 ----------- Run | Yrd Mat Min Mat Min Zio Pro Fac Low Low Dat Pro Fac Upp Upp Zhi Pro Matter Collected 1783 | 230 . 84 331 53 98 58 188 136 139 . 20 107 66 74 42 157 Remotely . | . . . . . . . . . . . . . . . . . Salvage Created 1687 | 34 . 126 515 . . . 59 . 147 . . 178 . . 66 562 Parts 84 | 1 . 9 31 . . . 3 . 5 . . 8 . . . 27 Haulers Intercepted 3 | . . . 3 . . . . . . . . . . . . . Recyclers Shooed . | . . . . . . . . . . . . . . . . . Parts Field Recycled . | . . . . . . . . . . . . . . . . . Retrieved Matter . | . . . . . . . . . . . . . . . . . Parts Self-Destructed 71 | . . . . . . 9 . 17 5 . . . 10 7 . 23 Prevented 16 | . . . . . . 4 . . . . . . 4 3 . 5 Kills | -11 -10 -10 -9 -9 -7 -6 -6 -6 -6 -6 -5 -5 -5 -5 -5 -4 ------- Run | Yrd Mat Min Mat Min Zio Pro Fac Low Low Dat Pro Fac Upp Upp Zhi Pro Combat Hostiles Destroyed 30 | 1 . 5 9 . . . 1 . 4 . . 1 . . . 9 Guns 25 | 1 . 5 9 . . . 1 . 2 . . . . . . 7 Cannons 3 | . . . . . . . . . 2 . . 1 . . . . Classes Destroyed 10 | 1 . 1 4 . . . . . 1 . . 1 . . . 2 Worker 3 | . . . 1 . . . . . . . . 2 . . . . Hauler 3 | . . . 3 . . . . . . . . . . . . . Operator 1 | . . . . . . . . . . . . 1 . . . . Watcher 2 | . . . 1 . . . . . . . . 1 . . . . Swarmer 10 | . . 3 3 . . . . . 1 . . . . . . 3 Grunt 14 | 1 . 2 5 . . . 1 . 1 . . . . . . 4 Brawler 1 | . . . . . . . . . . . . . . . . 1 Sentry 4 | . . . 1 . . . . . 1 . . 1 . . . 1 Programmer 1 | . . . . . . . . . 1 . . . . . . . Z-Courier 1 | . . . . . . . . . . . . 1 . . . . Z-Light 1 | . . . . . . . . . . . . . . . . 1 Best Kill Streak 6 | 1 . 3 3 . . . 1 . 3 . . 2 . . . 6 Combat Bots Only 6 | 1 . 3 3 . . . 1 . 3 . . 1 . . . 6 Max Kills in Single Turn 2 | 1 . 1 1 . . . 1 . 1 . . 1 . . . 2 Gunslinging 1 | . . . . . . . . . . . . . . . . 1 Exploded . | . . . . . . . . . . . . . . . . . Melee . | . . . . . . . . . . . . . . . . . Uniques/NPCs Destroyed . | . . . . . . . . . . . . . . . . . Combat | -11 -10 -10 -9 -9 -7 -6 -6 -6 -6 -6 -5 -5 -5 -5 -5 -4 -------- Run | Yrd Mat Min Mat Min Zio Pro Fac Low Low Dat Pro Fac Upp Upp Zhi Pro Hostile Shots Fired 371 | 6 . 33 64 . . 8 40 18 62 . 19 6 1 14 . 100 Missed 131 | 1 . 6 14 . . 4 21 5 35 . 10 2 . 3 . 30 Hits 240 | 5 . 27 50 . . 4 19 13 27 . 9 4 1 11 . 70 Melee 11 | . . . . . . . . . . . . . . . . 11 Projectile 229 | 5 . 27 50 . . 4 19 13 27 . 9 4 1 11 . 59 Critical Strikes 11 | . . . 2 . . . 1 . . . . . . . . 8 Damage Taken 4006 | 54 . 312 593 . . 85 271 262 264 . 193 97 24 207 . 1644 Core 1398 | 23 . 63 146 . . . 62 33 70 . 67 74 24 21 . 815 Absorbed by Shields 56 | . . . . . . . . . . . . . . . . 56 Core Remaining (%) 72 | 90 . 65 . . . 63 . . . . 72 . . . . . Volleys Fired 182 | 6 . 16 53 . . 8 14 8 24 . . 17 1 4 2 29 Largest 3 | 1 . 2 3 . . 2 3 3 2 . . 1 1 1 1 3 Hottest 213 | 40 . 60 99 . . 43 101 142 109 . . 40 40 40 40 213 Shots Fired 322 | 6 . 32 107 . . 11 33 24 32 . . 17 1 4 2 53 Gun 247 | 6 . 32 107 . . 11 26 16 8 . . . . . . 41 Cannon 75 | . . . . . . . 7 8 24 . . 17 1 4 2 12 Launcher . | . . . . . . . . . . . . . . . . . Special . | . . . . . . . . . . . . . . . . . Kinetic 212 | . . 16 76 . . 11 33 16 24 . . 17 1 4 2 12 Thermal 110 | 6 . 16 31 . . . . 8 8 . . . . . . 41 Explosive . | . . . . . . . . . . . . . . . . . Electromagnetic . | . . . . . . . . . . . . . . . . . Robot Hit Streak 15 | 5 . 11 8 . . 5 6 3 4 . . 4 . 1 2 15 Robot Miss Streak 5 | 1 . 2 3 . . 4 3 5 3 . . 2 1 3 . 3 Penetration Max 1 | . . . . . . . 1 . . . . . . . . . Secondary Targets 3 | . . . 1 . . . . . . . . . . . . 2 Max Gunslinging Chain 1 | . . . 1 . . . . . . . . . . . . 1 Shots Hit Robots 200 | 5 . 22 70 . . 6 20 11 14 . . 12 . 1 2 37 Core Hits 87 | 2 . 8 23 . . 2 11 5 6 . . 8 . . 1 21 Critical Kills . | . . . . . . . . . . . . . . . . . Critical Parts Destroyed . | . . . . . . . . . . . . . . . . . Critical Strikes 10 | . . . 2 . . . 1 . 1 . . 2 . 1 . 3 Burn 5 | . . . 2 . . . . . 1 . . . . . . 2 Blast 5 | . . . . . . . 1 . . . . 2 . 1 . 1 Melee Attacks . | . . . . . . . . . . . . . . . . . Impact . | . . . . . . . . . . . . . . . . . Slashing . | . . . . . . . . . . . . . . . . . Piercing . | . . . . . . . . . . . . . . . . . Sneak Attacks . | . . . . . . . . . . . . . . . . . Combat Hostiles . | . . . . . . . . . . . . . . . . . Follow-up Attacks . | . . . . . . . . . . . . . . . . . Damage Inflicted 3753 | 55 . 262 956 . . 69 519 274 368 . . 323 . 85 49 793 Guns 2684 | 55 . 262 956 . . 69 420 195 97 . . . . . . 630 Cannons 1069 | . . . . . . . 99 79 271 . . 323 . 85 49 163 Explosions . | . . . . . . . . . . . . . . . . . Melee . | . . . . . . . . . . . . . . . . . Ramming . | . . . . . . . . . . . . . . . . . Kinetic 2414 | . . 116 643 . . 69 519 176 271 . . 323 . 85 49 163 Thermal 1339 | 55 . 146 313 . . . . 98 97 . . . . . . 630 Explosive . | . . . . . . . . . . . . . . . . . Electromagnetic . | . . . . . . . . . . . . . . . . . Impact . | . . . . . . . . . . . . . . . . . Slashing . | . . . . . . . . . . . . . . . . . Piercing . | . . . . . . . . . . . . . . . . . Highest Corruption 25 | . . . . . . . . . . . . . . . . 25 Average Corruption 12 | . . . . . . . . . . . . . . . . 12 Corruption Purged . | . . . . . . . . . . . . . . . . . Corruption Blocked . | . . . . . . . . . . . . . . . . . Effects 10 | . . . . . . . . . . . . . . . . 10 Message Errors 1 | . . . . . . . . . . . . . . . . 1 Matter Fused 1 | . . . . . . . . . . . . . . . . 1 Heat Flow Errors 1 | . . . . . . . . . . . . . . . . 1 Energy Discharges 4 | . . . . . . . . . . . . . . . . 4 Misdirections 3 | . . . . . . . . . . . . . . . . 3 Overload Shots . | . . . . . . . . . . . . . . . . . Overflow Damage . | . . . . . . . . . . . . . . . . . Projectiles . | . . . . . . . . . . . . . . . . . Explosions . | . . . . . . . . . . . . . . . . . Melee . | . . . . . . . . . . . . . . . . . Knockbacks 10 | . . . . . . . 3 2 1 . . . . 1 . 3 Impact . | . . . . . . . . . . . . . . . . . Kinetic 10 | . . . . . . . 3 2 1 . . . . 1 . 3 Secondary . | . . . . . . . . . . . . . . . . . Self-Inflicted Damage . | . . . . . . . . . . . . . . . . . Shots . | . . . . . . . . . . . . . . . . . Rammed . | . . . . . . . . . . . . . . . . . Targets Rammed . | . . . . . . . . . . . . . . . . . Kicked . | . . . . . . . . . . . . . . . . . Crushed . | . . . . . . . . . . . . . . . . . Highest Temperature 253 | 1 . 15 228 . . . 106 253 182 . . 1 . . . 241 Average Temperature 84 | 1 . 6 76 . . . 41 120 106 . . 1 . . . 105 Received Heat Transfer 1205 | 30 . 138 279 . . . 150 27 57 . 48 18 . 93 . 365 Siege Activations . | . . . . . . . . . . . . . . . . . Martial Activations . | . . . . . . . . . . . . . . . . . Shielding Activations . | . . . . . . . . . . . . . . . . . Robots Disrupted . | . . . . . . . . . . . . . . . . . Combat Hostiles . | . . . . . . . . . . . . . . . . . Robots Corrupted . | . . . . . . . . . . . . . . . . . Combat Hostiles . | . . . . . . . . . . . . . . . . . Parts Fried . | . . . . . . . . . . . . . . . . . Impact Corruptions . | . . . . . . . . . . . . . . . . . Robots Melted 2 | . . . . . . . . . . . . . . . . 2 Combat Hostiles 2 | . . . . . . . . . . . . . . . . 2 Parts Melted 9 | 1 . 1 2 . . . . . . . . 1 . . . 4 Heat Transferred 3451 | 125 . 325 939 . . . . 185 259 . . . . . . 1618 Parts Sabotaged . | . . . . . . . . . . . . . . . . . Parts Stolen . | . . . . . . . . . . . . . . . . . Parts Stripped . | . . . . . . . . . . . . . . . . . Power Chain Reactions . | . . . . . . . . . . . . . . . . . Alert | -11 -10 -10 -9 -9 -7 -6 -6 -6 -6 -6 -5 -5 -5 -5 -5 -4 ------- Run | Yrd Mat Min Mat Min Zio Pro Fac Low Low Dat Pro Fac Upp Upp Zhi Pro Maximum Alert Level 3 | . . . . . . . 3 . . . . 2 . . . . Low Security (%) 69 | 100 100 100 100 100 . . . . . . . . . . . . Level 1 2 | . . . . . . . . . . . . 20 . . . . Level 2 20 | . . . . . . . 59 . . . . 79 . . . . Level 3 6 | . . . . . . . 40 . . . . . . . . . Level 4 . | . . . . . . . . . . . . . . . . . Level 5 . | . . . . . . . . . . . . . . . . . High Security . | . . . . . . . . . . . . . . . . . Max Security . | . . . . . . . . . . . . . . . . . Peak Influence 855 | 20 13 90 89 24 . . 855 . . . . 475 . . . . Initial 475 | . 13 . 35 24 . . 475 . . . . 397 . . . . Average 178 | . 2 38 44 4 . . 610 . . . . 431 . . . . Influence Increases 3394 | 20 . 120 282 20 . 192 980 325 90 . 225 458 160 169 5 348 Destroy 0b10 Robot/C 1340 | 20 . 100 180 20 . 120 220 180 80 . . 20 100 100 . 200 Destroy 0b10 Robot/NC 65 | . . . 25 . . . 15 . . . . 20 . . 5 . Destroy Leader 216 | . . 20 38 . . 20 46 30 10 . . 12 10 20 . 10 Allied During Kill 369 | . . . . . . 52 139 85 . . . 21 50 19 . 3 Successful Hack 37 | . . . 37 . . . . . . . . . . . . . Disable Machine 15 | . . . . . . . 15 . . . . . . . . . Destroy Structure 32 | . . . 2 . . . 20 . . . . 10 . . . . Advance Influence 750 | . . . . . . . 450 . . . . 300 . . . . Partial Spotted 60 | . . . . . . . . . . . . 60 . . . . Lose Combat Pursuer 510 | . . . . . . . 75 30 . . 225 15 . 30 . 135 Influence Decreases 3294 | . 20 30 310 82 . 150 177 474 293 493 70 158 289 283 217 248 Entered New Map 1559 | . 7 . 55 38 . . 17 314 133 493 . 58 169 63 212 . Time Decay 1394 | . 13 30 252 34 . 140 130 110 110 . 60 100 100 170 5 140 Lost Part 193 | . . . 3 . . 10 10 10 50 . 10 . . 10 . 90 Lost Ally 148 | . . . . 10 . . 20 40 . . . . 20 40 . 18 Squads Dispatched 5 | . . . . . . . 3 . . . . 1 . . . 1 Investigation . | . . . . . . . . . . . . . . . . . Extermination 1 | . . . . . . . . . . . . 1 . . . . Reinforcement 3 | . . . . . . . 3 . . . . . . . . . Assault 1 | . . . . . . . . . . . . . . . . 1 Garrison . | . . . . . . . . . . . . . . . . . Intercept . | . . . . . . . . . . . . . . . . . Searches Triggered . | . . . . . . . . . . . . . . . . . Construction Impeded 1 | . . . . . . . 1 . . . . . . . . . Haulers Reinforced . | . . . . . . . . . . . . . . . . . Active Scanning Responses . | . . . . . . . . . . . . . . . . . Cargo Convoy Interrupts . | . . . . . . . . . . . . . . . . . Stealth | -11 -10 -10 -9 -9 -7 -6 -6 -6 -6 -6 -5 -5 -5 -5 -5 -4 --------- Run | Yrd Mat Min Mat Min Zio Pro Fac Low Low Dat Pro Fac Upp Upp Zhi Pro Distress Signals 5 | . . . 1 . . 1 . . . . . 1 . . . 2 Communications Jammed . | . . . . . . . . . . . . . . . . . Distress Signals . | . . . . . . . . . . . . . . . . . Times Spotted 119 | 1 . 5 13 . . 6 17 7 4 . 17 7 5 7 . 30 Peak Tracking Total 10 | 1 . 3 3 . . 5 9 3 2 . 10 5 4 5 . 10 Tactical Retreats 13 | . . . . . . . 1 1 . . 4 1 . 1 . 5 Traps | -11 -10 -10 -9 -9 -7 -6 -6 -6 -6 -6 -5 -5 -5 -5 -5 -4 ------- Run | Yrd Mat Min Mat Min Zio Pro Fac Low Low Dat Pro Fac Upp Upp Zhi Pro Traps Triggered . | . . . . . . . . . . . . . . . . . Indirectly . | . . . . . . . . . . . . . . . . . Trap Hack Attempts . | . . . . . . . . . . . . . . . . . Triggered . | . . . . . . . . . . . . . . . . . Disarmed . | . . . . . . . . . . . . . . . . . Reprogrammed . | . . . . . . . . . . . . . . . . . Reused . | . . . . . . . . . . . . . . . . . Traps Extracted . | . . . . . . . . . . . . . . . . . Installed . | . . . . . . . . . . . . . . . . . Triggered . | . . . . . . . . . . . . . . . . . Machines | -11 -10 -10 -9 -9 -7 -6 -6 -6 -6 -6 -5 -5 -5 -5 -5 -4 ---------- Run | Yrd Mat Min Mat Min Zio Pro Fac Low Low Dat Pro Fac Upp Upp Zhi Pro Machines Disabled 1 | . . . . . . . 1 . . . . . . . . . Max in Single Turn 1 | . . . . . . . 1 . . . . . . . . . Machines Repaired . | . . . . . . . . . . . . . . . . . Machines Dismantled . | . . . . . . . . . . . . . . . . . Machines Sabotaged . | . . . . . . . . . . . . . . . . . Overloaded Fab Kills . | . . . . . . . . . . . . . . . . . Hacking | -11 -10 -10 -9 -9 -7 -6 -6 -6 -6 -6 -5 -5 -5 -5 -5 -4 --------- Run | Yrd Mat Min Mat Min Zio Pro Fac Low Low Dat Pro Fac Upp Upp Zhi Pro Machines Accessed 19 | . . 1 4 . 1 . . . 2 4 . . . . 7 . Terminals 6 | . . 1 4 . . . . . 1 . . . . . . . Fabricators . | . . . . . . . . . . . . . . . . . Repair Stations . | . . . . . . . . . . . . . . . . . Recycling Units . | . . . . . . . . . . . . . . . . . Scanalyzers . | . . . . . . . . . . . . . . . . . Garrison Access . | . . . . . . . . . . . . . . . . . Total Hacks 94 | . . 1 10 . 4 . . . 3 34 . . . . 42 . Successful 89 | . . 1 5 . 4 . . . 3 34 . . . . 42 . Failed 5 | . . . 5 . . . . . . . . . . . . . Catastrophic 1 | . . . 1 . . . . . . . . . . . . . Database Lockouts . | . . . . . . . . . . . . . . . . . Manual 22 | . . . 9 . . . 2 . . . . 11 . . . . Terminals 13 | . . 1 10 . . . . . 2 . . . . . . . Fabricators . | . . . . . . . . . . . . . . . . . Repair Stations . | . . . . . . . . . . . . . . . . . Recycling Units . | . . . . . . . . . . . . . . . . . Scanalyzers . | . . . . . . . . . . . . . . . . . Garrison Access . | . . . . . . . . . . . . . . . . . Terminal Hacks 86 | . . 1 2 . 4 . . . 3 34 . . . . 42 . Record 47 | . . . . . . . . . 2 11 . . . . 34 . Part Schematic 21 | . . . . . 4 . . . . 13 . . . . 4 . Robot Schematic 7 | . . . . . . . . . . 7 . . . . . . Prototype ID Bank 7 | . . . . . . . . . . 3 . . . . 4 . Open Door 1 | . . . . . . . . . 1 . . . . . . . Alert Level 1 | . . 1 . . . . . . . . . . . . . . Zone Layout 2 | . . . 2 . . . . . . . . . . . . . Fabricator Hacks . | . . . . . . . . . . . . . . . . . Repair Station Hacks . | . . . . . . . . . . . . . . . . . Recycling Unit Hacks . | . . . . . . . . . . . . . . . . . Scanalyzer . | . . . . . . . . . . . . . . . . . Garrison Access Hacks . | . . . . . . . . . . . . . . . . . Unauthorized Hacks 3 | . . . 3 . . . . . . . . . . . . . Terminals 3 | . . . 3 . . . . . . . . . . . . . Botnet 3 | . . . 3 . . . . . . . . . . . . . Fabricators . | . . . . . . . . . . . . . . . . . Repair Stations . | . . . . . . . . . . . . . . . . . Recycling Units . | . . . . . . . . . . . . . . . . . Scanalyzers . | . . . . . . . . . . . . . . . . . Garrison Access . | . . . . . . . . . . . . . . . . . Data Cores Recovered . | . . . . . . . . . . . . . . . . . Used . | . . . . . . . . . . . . . . . . . Hacking Detections 4 | . . . 4 . . . . . . . . . . . . . Full Trace Events . | . . . . . . . . . . . . . . . . . Feedback Events . | . . . . . . . . . . . . . . . . . Feedback Blocked . | . . . . . . . . . . . . . . . . . Robot Schematics Acquired 9 | . . . . . 2 . . . . 7 . . . . . . Robots Built . | . . . . . . . . . . . . . . . . . Authchips . | . . . . . . . . . . . . . . . . . Time . | . . . . . . . . . . . . . . . . . Total Robot Build Rating . | . . . . . . . . . . . . . . . . . Part Schematics Acquired 35 | . . . . . 18 . . . . 13 . . . . 4 . Parts Built . | . . . . . . . . . . . . . . . . . Authchips . | . . . . . . . . . . . . . . . . . Time . | . . . . . . . . . . . . . . . . . Total Part Build Rating . | . . . . . . . . . . . . . . . . . Parts Repaired . | . . . . . . . . . . . . . . . . . Time . | . . . . . . . . . . . . . . . . . Parts Recycled . | . . . . . . . . . . . . . . . . . Recycled Matter . | . . . . . . . . . . . . . . . . . Retrieved Matter . | . . . . . . . . . . . . . . . . . Retrieved Components . | . . . . . . . . . . . . . . . . . Parts Scanalyzed . | . . . . . . . . . . . . . . . . . Part Schematics Acquired . | . . . . . . . . . . . . . . . . . Parts Damaged . | . . . . . . . . . . . . . . . . . Bothacking | -11 -10 -10 -9 -9 -7 -6 -6 -6 -6 -6 -5 -5 -5 -5 -5 -4 ------------ Run | Yrd Mat Min Mat Min Zio Pro Fac Low Low Dat Pro Fac Upp Upp Zhi Pro Used RIF Installer . | . . . . . . . . . . . . . . . . . Robots Hacked . | . . . . . . . . . . . . . . . . . Non-combat . | . . . . . . . . . . . . . . . . . Combat . | . . . . . . . . . . . . . . . . . Robot Hacks Applied . | . . . . . . . . . . . . . . . . . Relay Couplers Released . | . . . . . . . . . . . . . . . . . Fabnet Peak Effective % . | . . . . . . . . . . . . . . . . . Robots Rewired . | . . . . . . . . . . . . . . . . . Allies Hacked . | . . . . . . . . . . . . . . . . . Hacks Repelled . | . . . . . . . . . . . . . . . . . Allies | -11 -10 -10 -9 -9 -7 -6 -6 -6 -6 -6 -5 -5 -5 -5 -5 -4 -------- Run | Yrd Mat Min Mat Min Zio Pro Fac Low Low Dat Pro Fac Upp Upp Zhi Pro Total Allies 15 | . . . . 2 4 . 2 . . . . 7 . . . . Largest Group 6 | . . . . 2 4 4 2 2 . . . 6 6 5 2 2 Highest-Rated Group 363 | . . . . 41 154 154 192 192 . . . 363 363 312 114 114 Highest-Rated Ally 96 | . . . . 31 40 40 96 96 . . . 70 70 70 70 70 Zionite Dispatches 3 | . . . . . . . . . . . . 3 . . . . Light 1 | . . . . . . . . . . . . 1 . . . . Hacker 1 | . . . . . . . . . . . . 1 . . . . Infowar Resupply 1 | . . . . . . . . . . . . 1 . . . . Total Orders 2 | . . . . . . . . . . . . 2 . . . . STAY 1 | . . . . . . . . . . . . 1 . . . . DROP 1 | . . . . . . . . . . . . 1 . . . . Ally Attacks 167 | . . . . 5 . 18 44 38 . . . 11 19 25 . 7 Total Damage 5563 | . . . . 66 . 832 1848 936 . . . 188 662 876 . 155 Kills 42 | . . . . 1 . 7 13 9 . . . . 5 6 . 1 Allies Corrupted . | . . . . . . . . . . . . . . . . . Allies Melted . | . . . . . . . . . . . . . . . . . Intel | -11 -10 -10 -9 -9 -7 -6 -6 -6 -6 -6 -5 -5 -5 -5 -5 -4 ------- Run | Yrd Mat Min Mat Min Zio Pro Fac Low Low Dat Pro Fac Upp Upp Zhi Pro Active Infowar (turns) 1914 | . . . . . . . 264 223 181 . 52 215 210 358 174 237 Sensors 659 | . . . . . . . 263 223 173 . . . . . . . IFF 5 | . . . . . . . 5 . . . . . . . . . Terrain 482 | . . . . . . . 78 223 181 . . . . . . . Structural 187 | . . . . . . . 187 . . . . . . . . . Decoding 1246 | . . . . . . . . . . . 52 215 210 358 174 237 Robot Analysis Total . | . . . . . . . . . . . . . . . . . Derelict Logs Recovered 10 | . . . . 1 2 3 . . 1 . 1 . . 1 . 1 Drone Launches . | . . . . . . . . . . . . . . . . . Drone Recoveries . | . . . . . . . . . . . . . . . . . Decoded 0b10 Intel 6 | . . . . . . . . . . . . 6 . . . . Traps 6 | . . . . . . . . . . . . 6 . . . . Exploration | -11 -10 -10 -9 -9 -7 -6 -6 -6 -6 -6 -5 -5 -5 -5 -5 -4 ------------- Run | Yrd Mat Min Mat Min Zio Pro Fac Low Low Dat Pro Fac Upp Upp Zhi Pro Turns Passed 4196 | 84 129 98 569 241 582 297 266 223 225 29 141 215 210 358 174 355 Spaces Moved 5620 | 63 105 36 380 361 960 402 529 384 432 85 360 351 196 388 192 396 Core 94 | 13 . . . . . . . . . . . . . . . 81 Treads . | . . . . . . . . . . . . . . . . . Legs 407 | 50 105 36 216 . . . . . . . . . . . . . Wheels 983 | . . . . . . . . . . . . 52 196 388 192 155 Hover . | . . . . . . . . . . . . . . . . . Flight 4136 | . . . 164 361 960 402 529 384 432 85 360 299 . . . 160 Fastest Speed 31 | 50 120 120 37 37 37 37 31 31 34 34 34 40 80 86 86 35 Average Speed 52 | 105 120 120 85 37 37 37 31 48 34 34 37 45 99 87 86 60 Slowest Speed 250 | 120 120 120 250 37 37 107 31 104 34 34 40 80 100 115 86 101 Overloaded Moves . | . . . . . . . . . . . . . . . . . Propulsion Burnouts . | . . . . . . . . . . . . . . . . . Robots Hopped 16 | . . . 4 2 . . 4 1 1 . 1 2 . . . 1 Potential Cave-ins 4 | . . . . . . 1 . . 3 . . . . . . . Cave-ins Triggered . | . . . . . . . . . . . . . . . . . Teleports 1 | . . . . . . . . . . . . . . . 1 . Exploration Rate (%) 43 | 5 20 8 39 67 86 50 11 53 51 69 62 11 38 65 62 50 Regions Visited 16 Branch Regions 12 Pre-discovered Areas 5 | . . . . . 1 . . . . 1 . . . . 3 . Known Exits Taken 5 | . . . . . . . . . . . 1 1 1 1 1 . Unknown Exits Taken 11 | 1 1 1 1 1 1 1 1 1 1 1 . . . . . . Scrap Searched 21 | . . . . 1 4 1 . 2 3 . 4 . 2 2 . 2 Spaces Dug 5 | . . . . . . . . . 5 . . . . . . . Terrain Destroyed 20 | . . . . . . . 2 5 9 . . 2 . 1 . 1 Melee . | . . . . . . . . . . . . . . . . . Projectile 20 | . . . . . . . 2 5 9 . . 2 . 1 . 1 AOE . | . . . . . . . . . . . . . . . . . Terrain Rammed . | . . . . . . . . . . . . . . . . . Walls Destroyed . | . . . . . . . . . . . . . . . . . Machines Disabled . | . . . . . . . . . . . . . . . . . Actions | -11 -10 -10 -9 -9 -7 -6 -6 -6 -6 -6 -5 -5 -5 -5 -5 -4 --------- Run | Yrd Mat Min Mat Min Zio Pro Fac Low Low Dat Pro Fac Upp Upp Zhi Pro Total 6516 | 73 107 57 514 465 1187 536 596 400 478 84 365 385 210 399 198 462 Wait 598 | . . . 31 105 224 121 39 9 17 . . 14 10 3 . 25 Move 5574 | 62 104 35 371 356 959 401 521 381 429 84 357 347 195 387 191 394 Hop 14 | . . . 4 2 . . 3 1 1 . 1 1 . . . 1 Pick Up 21 | 2 1 . 9 1 2 . 3 . . . . 2 . . . 1 Fast Attach 48 | 3 2 . 13 . . 2 5 1 . . 4 2 2 3 3 8 Attach 21 | . . 1 5 1 . . 7 . 2 . . 1 . 2 . 2 Detach 13 | . . . 3 . . . 2 . 4 . . . 2 . 1 1 Swap 9 | . . 4 5 . . . . . . . . . . . . . Drop 36 | . . 1 20 . 2 4 2 . 1 . 3 1 . . 1 1 Fire 182 | 6 . 16 53 . . 8 14 8 24 . . 17 1 4 2 29 Melee . | . . . . . . . . . . . . . . . . . Ram . | . . . . . . . . . . . . . . . . . Kick . | . . . . . . . . . . . . . . . . . Crush . | . . . . . . . . . . . . . . . . . Escape Stasis . | . . . . . . . . . . . . . . . . . Rewire . | . . . . . . . . . . . . . . . . . Trap . | . . . . . . . . . . . . . . . . . Miscellaneous . | . . . . . . . . . . . . . . . . . Route ------- -11/Scrapyard -10/Materials (discovered 2 exits: *Mat / *Min) -10/Mines -9/Materials -9/Mines -7/Zion -6/Proximity Caves -6/Factory (discovered 2 exits: Fac / [*Low]) -6/Lower Caves -6/Lower Caves -6/Data Miner -5/Proximity Caves -5/Factory (discovered 3 exits: *Upp / Ext x2) -5/Upper Caves -5/Upper Caves (discovered 2 exits: [*Fac] / *Zhi) -5/Zhirov -4/Proximity Caves History --------- Turn | Location | Event 2 | -11/Scrapyard | Met Revision 17 61 | -11/Scrapyard | Discovered new exit (range 8) 85 | -11/Scrapyard | Entered Materials 112 | -10/Materials | Discovered new exit (range 7) 166 | -10/Materials | Discovered new exit (range 6) 214 | -10/Materials | Entered Mines 307 | -10/Mines | Discovered new exit (range 5) 312 | -10/Mines | Entered Materials 312 | -9/Materials | Evolved 2 slots: Utility x1, Weapon x1 324 | -9/Materials | Build established: Mutant 540 | -9/Materials | Lost 3 parts (2n1w) 863 | -9/Materials | Discovered new exit (range 16) 881 | -9/Materials | Entered Mines 907 | -9/Mines | Found a hidden stash of uninstalled traps 928 | -9/Mines | Learned Materials terminal intel 977 | -9/Mines | Found a Scrap Suit stashed away for nefarious purposes 991 | -9/Mines | A Derelict revealed a hidden shortcut to a safe place 1122 | -9/Mines | Entered Zion 1191 | -7/Zion | Learned Factory emergency access door positions 1204 | -7/Zion | Build established: Gunner 1229 | -7/Zion | Given A8's code to call for help 1259 | -7/Zion | Learned Factory emergency access door positions 1416 | -7/Zion | Given the Hacking Drone Bay 1442 | -7/Zion | Met Imprinter 1449 | -7/Zion | Imprinted 1451 | -7/Zion | Declared Zion's savior 1528 | -7/Zion | Discovered new exit (range 12) 1704 | -7/Zion | Entered Proximity Caves 1704 | -6/Proximity Caves | Accompanied by 4 allies 1730 | -6/Proximity Caves | Learned 4 Factory zone layouts 1798 | -6/Proximity Caves | Spotter reported a threat 1823 | -6/Proximity Caves | Learned location of 1 exit from Factory 1851 | -6/Proximity Caves | Spotter reported a threat 1881 | -6/Proximity Caves | Discovered new exit (range 13) 1945 | -6/Proximity Caves | Spotter reported a threat 2001 | -6/Proximity Caves | Entered Factory 2001 | -6/Factory | Accompanied by 1 ally 2001 | -6/Factory | Evolved 6 slots: Power x1, Propulsion x2, Utility x3 2002 | -6/Factory | Identified exit to Factory 2119 | -6/Factory | Enhanced Grunt warped into view, answering call for help 2123 | -6/Factory | Enhanced Grunt warped into view, answering call for help 2211 | -6/Factory | Discovered new exit (range 12) 2267 | -6/Factory | Entered Lower Caves 2267 | -6/Lower Caves | Accompanied by 2 allies 2479 | -6/Lower Caves | Discovered new exit (range 10) 2490 | -6/Lower Caves | Entered another Lower Caves area 2670 | -6/Lower Caves | Attracted the attention of an 0b10 checkpoint 2710 | -6/Lower Caves | Lost 4 parts (1p3u) 2712 | -6/Lower Caves | Discovered new exit (range 8) 2715 | -6/Lower Caves | Entered Data Miner 2715 | -6/Data Miner | Discovered new exit (range 6) 2722 | -6/Data Miner | Met Data Miner 2728 | -6/Data Miner | Learned location of Section 7 (-2) 2728 | -6/Data Miner | Acquired the access code to Warlord's prototype stash 2735 | -6/Data Miner | Received God Mode back door access code from Data Miner 2744 | -6/Data Miner | Entered Proximity Caves 2775 | -5/Proximity Caves | Learned 4 Factory zone layouts 2827 | -5/Proximity Caves | Spotter reported a threat 2831 | -5/Proximity Caves | Found DCF Scrap (16 items) 2837 | -5/Proximity Caves | Spotter reported a threat 2842 | -5/Proximity Caves | Attracted the attention of an 0b10 checkpoint 2883 | -5/Proximity Caves | Discovered exit to Factory (range 6) 2885 | -5/Proximity Caves | Entered Factory 2885 | -5/Factory | Evolved 2 slots: Propulsion x1, Utility x1 2886 | -5/Factory | Identified exit to Extension 2898 | -5/Factory | Zion Infowar Resupply teleported in 2966 | -5/Factory | Build established: Mutant 2998 | -5/Factory | Zion Hacker squad teleported in 3006 | -5/Factory | Zion Light squad teleported in 3078 | -5/Factory | Discovered new exit (range 16) 3100 | -5/Factory | Identified exit to Upper Caves 3100 | -5/Factory | Entered Upper Caves 3100 | -5/Upper Caves | Accompanied by 6 allies 3115 | -5/Upper Caves | Attracted the attention of an 0b10 checkpoint 3296 | -5/Upper Caves | Discovered new exit (range 11) 3306 | -5/Upper Caves | Identified exit to Upper Caves 3310 | -5/Upper Caves | Entered another Upper Caves area 3310 | -5/Upper Caves | Accompanied by 5 allies 3338 | -5/Upper Caves | Discovered new exit (range 6) 3383 | -5/Upper Caves | Lost 3 allies 3622 | -5/Upper Caves | Discovered new exit (range 8) 3628 | -5/Upper Caves | Identified exit to Zhirov 3631 | -5/Upper Caves | Learned Factory emergency access door positions 3658 | -5/Upper Caves | Build established: Scavenger-Mutant 3668 | -5/Upper Caves | Entered Zhirov 3668 | -5/Zhirov | Accompanied by 2 allies 3668 | -5/Zhirov | Discovered new exit (range 3) 3676 | -5/Zhirov | Identified exit to Proximity Caves 3718 | -5/Zhirov | Learned location of Quarantine (-3) 3718 | -5/Zhirov | Learned location of Testing (-2) 3718 | -5/Zhirov | Learned location of Command (-1) 3740 | -5/Zhirov | Found Alien Artifact 3740 | -5/Zhirov | Identified Integrated Reactor 3740 | -5/Zhirov | Installed Integrated Reactor, increased core energy generation (+10) 3750 | -5/Zhirov | Found Alien Artifact 3750 | -5/Zhirov | Identified Transdimensional Reconstructor 3750 | -5/Zhirov | Warped through subspace 3842 | -5/Zhirov | Entered Proximity Caves 3842 | -4/Proximity Caves | Accompanied by 2 allies 3923 | -4/Proximity Caves | Spotter reported a threat 3976 | -4/Proximity Caves | Spotter reported a threat 4047 | -4/Proximity Caves | Attracted the attention of an 0b10 outpost 4049 | -4/Proximity Caves | Spotter reported a threat 4070 | -4/Proximity Caves | System corruption reached 10% 4079 | -4/Proximity Caves | Released all parts (8) 4110 | -4/Proximity Caves | Lost 8 parts (2p3n2u1w) 4114 | -4/Proximity Caves | Core integrity fell below 50% 4193 | -4/Proximity Caves | Core integrity fell below 20% 4197 | -4/Proximity Caves | Destroyed by G-67 Veteran with Field Laser Last Messages --------------- 04122_ Found Transmission Jammer. 04122_ Found Arm. Huge Wheel. 04122_ Found 60 Matter. 04122_ Critical hit (Burn: +37). 04125_ A derelict emerges from the shadows: "Hey! In the mood for some fun?" 04125_ System corrupted: Matter fused (-10). 04139_ 0A-BCB(c): "Looks like you're headed in the direction of 0b10." 04145_ System corrupted: Energy discharge (-34). 04150_ 0A-BCB(c): "I've been working on a little something, and it might be of use to you." 04160_ X:ICZV:>ZNF3OWE/O&&ZK 04175_ System corrupted: Energy discharge (-28). 04190_ Cesium-ion Thruster severed. 04194_ 0A-BCB(c): "Don't be so impatient, let me tell you how awesome it is." 04197_ System corrupted: Energy discharge (-24). [Achievement: First Step to Greatness] [Achievement: 5k Club] [Achievement: 10k Club] Map ----- +----------------------------------------------------+ | ?????????????????????????????????????????????????? | | ?????????????????????????????????????????????????? | | ?????????????????????????????????????????????????? | | ?????????????????????????????????????????????????? | | ?????????????????????????????????????????????????? | | ?????????????????????????????????????????????????? | | ?????????????????????????????????????????????????? | | ?????????????????????????????????????????????????? | | ?????????????????????????????????????????????????? | | ?????????????????????????????????????????????????? | | ?????????????????????????????????????????????????? | | ?????????????????????????????????????????????????? | | ?????????????????????????????????????????????????? | | ????????????????# ??????????????????????????????? | | ??????????????## ??????????????????????????????? | | ??????????????# #?????????????????????????????? | | ?????????????# ##????????????????????????????? | | ?????????????# #????????????????????????????? | | ??????????????# ###?????????????????????????? | | ????????###????# #?????????????????????????? | | ???????## #?### ???####??????###?????????? | | ???????# ## #??## ##????## #?????????? | | ????????? ##?# ##??## ##????????? | | ??????????# ??# ### ##?# ##???????? | | ???????????# #?## ## #?# #???????? | | ????????????# ### @ ### ##??????? | | ????????????# ## ###????? | | ?????####???# g ##?##? | | ??#### #???# gg #### ### # | | ?## #??## ##g ##?## ## | | ## #### ## #??# #### | | n ## =###??###?# | | #### ### #????????# | | ## ###### ##??## ##?## ##??######## | | ### #????# #????##### #???# #### ##### | | ### #???# #????????# #??# ## ### | | #?## #??# #????????# #??## ## | | #??### #?# #????????# #???### | | %#?????# #???????? #?????## | | ##??????# #???????# #??????## | | ###??????#######???????## #???????## # | | #?????????????????????######????????############ | | #??????????????????????????????????????????????? | | #??????????????????????????????????????????????? | | #??????????????????????????????????????????????? | | #??????????????????????????????????????????????? | | #??????????????????????????????????????????????? | | #??????????????????????????????????????????????? | | #??????????????????????????????????????????????? | | #??????????????????????????????????????????????? | +----------------------------------------------------+ Best States ------------- Heat Dissipation 85 Energy Generation 53 Energy Capacity 170 Matter Stores 300 Matter Capacity 300 Sight Range 16 Robot Scan Range 15 Terrain Scan Range 16 Terrain Scan Density 210 Additional Mass Support 6 Armor Coverage 225 Phase Shifting 5 Evasion (%) 63 Targeting Accuracy 6 Recoil Reduction 6 Particle Charging 30 Offensive Hacking 12 Item Schematics ----------------- Imp. Melee Analysis Suite | -7/Zion | Archive Lgt. Angular Momentum Engine | -7/Zion | Archive Hrd. Heavy Armor Plating | -7/Zion | Archive Weapon Cycler | -7/Zion | Archive Remote Shield | -7/Zion | Archive Remote Datajack | -7/Zion | Archive Proton Cannon | -7/Zion | Archive Arm. Huge Wheel | -7/Zion | Archive Force Field | -7/Zion | Archive Lrn. Tractor Beam | -7/Zion | Archive Enh. Gauss Cannon | -7/Zion | Archive Phase Shifter | -7/Zion | Archive Microactuators | -7/Zion | Archive Enh. Optical Array | -7/Zion | Archive Riot Gun | -7/Zion | Free Slug Cannon | -7/Zion | Free Enh. Flamer | -7/Zion | Free Ripper | -7/Zion | Free Combat Drone Bay | -6/Data Miner | Free Lgt. Regenerative Plating | -6/Data Miner | Free Cld. Nuclear Pulse Thruster | -6/Data Miner | Free Imp. Matter Compressor | -6/Data Miner | Free Neutron Cannon | -6/Data Miner | Free Imp. Linear Gravjet | -6/Data Miner | Free Dispersion Rifle | -6/Data Miner | Free Quantum Capacitor | -6/Data Miner | Free Imp. Focal Shield | -6/Data Miner | Free Adv. Medium Treads | -6/Data Miner | Free Imp. Fusion Compressor | -6/Data Miner | Free Quantum Rifle | -6/Data Miner | Free Particle Reactor | -6/Data Miner | Free Assault Drone Bay | -5/Zhirov | Free Exp. Heat Sink | -5/Zhirov | Free Exp. Optical Array | -5/Zhirov | Free Imp. Arc Thrower | -5/Zhirov | Free Robot Schematics ------------------ S-27 Virus | -7/Zion | Archive B-36 Bruiser | -7/Zion | Archive A-15 Conveyor | -6/Data Miner | Free Y-64 Sentinel | -6/Data Miner | Free L-41 Fighter | -6/Data Miner | Free M-30 Cleanser | -6/Data Miner | Free M-22 Extractor | -6/Data Miner | Free L-61 Swordsman | -6/Data Miner | Free A-27 Freighter | -6/Data Miner | Free Fabricated ------------ Nothing Repaired ---------- Nothing Alien Tech Used ----------------- Integrated Reactor Transdimensional Reconstructor Achievements -------------- 10k Club 5k Club Adventurer Alien Tech Backstab Crack Shot Explorer First Step to Greatness Help From High Places I'm Back, Baby! It's Just You Leap Before You Look Librarian Loot Pinata Made in Tau Ceti IV Omniscient Cartographer Please Form A Line Quantum Hacking Risk Taker Robot Respite Serviceable Loadout Storm Trooper Subspace Traveler System Compromised The More The Merrier The One The Oracle Tourist True Hacker Uninvited Guest Challenges ------------ None Game ------ Seed GhostTrackerTriangulator Manual? 0 Play Time 01:26:48 Cumulative 1.4 hours Start 2025.07.08 @ 09:53:27 End 2025.07.08 @ 11:52:14 Sessions 1 Manual Loads 0 Difficulty Rogue Special Mode None Game No. 1 Rogue 1 Adventurer 0 Explorer 0 Win Type - Total 0 Types 0/0/0/0/0/0/0/0/0/0 Lore% 5 Gallery% 4 Achievement% 11 Wizard Run 0 Options --------- Layout 0 ASCII 0 Keyboard 0 Movement Arrows Keybinds 0 Fullscreen 2 Font 18/X11 Map View 76x50 Zoom Use 0% Tactical HUD 1 Map Filters NONE Filters NONE Steam 1 RUN: fa577457-8bd5-45ba-86a3-0b0cff0f69bc